{"text_format":"1","workbook":"xlsx","n_sheets":4,"sheets":["baseclient","ARCDE","infocde","article"],"not_rendered":{"charts":0,"images":3,"macros":1,"external_links":0,"defined_names":0,"comments":0,"pivot_tables":0},"unopened":[],"bounds":{"document_bytes":16777216,"sheet_cells":100000,"rows_first":2000,"rows_last":500,"rows_between":2000,"halvings":0,"cell_chars":16384,"cell_head_chars":4096},"cells_cut":0,"cells_raw":0,"read":"whole","date_system":"1900"}

{"sheet":"baseclient","index":0,"n_rows":12,"n_cols":16,"rows_kept":12,"cut":false,"hidden":false,"merged":[]}
[null,null,"Base CLIENT"]
[]
[]
[null,null,"Code Client","Societe2","Site","Civilité","Nom","Prenom","Service","Adresse","Code postal","Ville","Téléphone","Mode de règlement","Colonne9","CP VILLE"]
[null,null,"C100001","Société1","Site1","Mr","Nom1","Prenom1","Service soumission","adresse1",25500,"MORTEAU",101010101,"VIREMENT BANCAIRE 30 jours FIN DE MOIS",null,{"$f":"baseclient[[#This Row],[Code postal]]&\" \"&baseclient[[#This Row],[Ville]]","v":"25500 MORTEAU"}]
[null,null,"C100002","Société2","Site1","Mme","Nom2","Prenom2","Service soumission","adresse225",25000,"BESANCON",202020202,"VIREMENT BANCAIRE 30 jours FIN DE MOIS",null,{"$f":"baseclient[[#This Row],[Code postal]]&\" \"&baseclient[[#This Row],[Ville]]","v":"25000 BESANCON"}]
[null,null,"C100002","Société2","Site2","Mme","Nom4","Prenom4","Service Achat","adresse225",25000,"BESANCON",202020202,"VIREMENT BANCAIRE 30 jours FIN DE MOIS",null,{"$f":"baseclient[[#This Row],[Code postal]]&\" \"&baseclient[[#This Row],[Ville]]","v":"25000 BESANCON"}]
[null,null,"C100002","Société2","Site2","Mr","Nom3","Prenom3","Service comptabilité","adresse3",25000,"BESANCON",303030303,"VIREMENT BANCAIRE 30 jours FIN DE MOIS",null,{"$f":"baseclient[[#This Row],[Code postal]]&\" \"&baseclient[[#This Row],[Ville]]","v":"25000 BESANCON"}]
[null,null,"C100002","Société2","Site3","Mr","Nom3","Prenom4","Service achat","adresse4",75000,"PARIS",404040404,"VIREMENT BANCAIRE 30 jours FIN DE MOIS",null,{"$f":"baseclient[[#This Row],[Code postal]]&\" \"&baseclient[[#This Row],[Ville]]","v":"75000 PARIS"}]
[null,null,"C100002","Société2","Site4","Mr","Nom2","Prenom2","Service achat","adresse2",25000,"BESANCON",505050505,"VIREMENT BANCAIRE 30 jours FIN DE MOIS",null,{"$f":"baseclient[[#This Row],[Code postal]]&\" \"&baseclient[[#This Row],[Ville]]","v":"25000 BESANCON"}]
[null,null,"C100002","Société2",null,"Mr","Nom1","Prenom1",null,null,null,null,null,null,null,{"$f":"baseclient[[#This Row],[Code postal]]&\" \"&baseclient[[#This Row],[Ville]]","v":" "}]
[null,null,null,"Société2","Site3",null,null,null,"Service achat",null,null,null,null,null,null,{"$f":"baseclient[[#This Row],[Code postal]]&\" \"&baseclient[[#This Row],[Ville]]","v":" "}]

{"sheet":"ARCDE","index":1,"n_rows":38,"n_cols":42,"rows_kept":38,"cut":false,"hidden":false,"merged":[[13,20,14,22],[13,8,14,19],[13,1,14,7],[13,27,14,31],[13,23,14,26],[8,28,8,34]]}
[null,null,null,null,null,null,null,null,null,null,null,null,null,null,null,null,null,null,null,null,null,null,null,null,null,null,null,null,null,null,null,null,null,null,null,null,null,null,null,null,null,"Accusé de réception de commande"]
[null,null,null,null,null,null,null,null,null,null,null,null,null,null,null,null,null,null,null,null,null,null,null,null,null,null,null,null,null,null,null,null,null,null,null,"N°",null,null,null,null,null,"AR202401"]
[]
[]
[]
[]
[]
[]
[null,null,null,null,null,null,null,null,null,null,null,null,null,null,null,null,null,null,null,null,null,null,null,null,null,null,"Tél : "]
[null,"Code client :"]
[null,"Votre réf Commande/Achat : "]
[]
[]
[null,"Référence",null,null,null,null,null,null," Désignation",null,null,null,null,null,null,null,null,null,null,null,"Qté",null,null,"Prix U.HT",null,null,null,"Montant HT",null,null,null,null,"Délai"]
[null,null,null,null,null,null,null,null,null,null,null,null,null,null,null,null,null,null,null,null,null,null,null,null,null,null,null,null,null,null,null,null,"demandé",null,null,null,null,"Confirmé"]
[]
[]
[]
[]
[]
[]
[]
[]
[]
[]
[]
[]
[]
[]
[]
[]
[]
[]
[]
[null,null,null,null,null,null,null,null,null,null,null,null,null,null,"Base TVA",null,null,null,null,"Taux",null,null,null,null,"TVA",null,null,null,null,null,null,"NET A PAYER TTC"]
[]
[]
[null,"Mode de règlement :"]

{"sheet":"infocde","index":2,"n_rows":8,"n_cols":2,"rows_kept":8,"cut":false,"hidden":false,"merged":[]}
["Donnée Entrée de commande"]
[]
[]
[null,"Société"]
[null,"Site"]
[null,"Adresse"]
[null,"Code postal"]
[null,"Ville"]

{"sheet":"article","index":3,"n_rows":19,"n_cols":6,"rows_kept":19,"cut":false,"hidden":false,"merged":[]}
[null,"Code article"]
[]
[]
[null,"Ref client","Ref interne","Designation","Prix HT","Pour 1000"]
[null,25364,10000,"Polissage fermoir",3.593,{"$f":"Tableau2[[#This Row],[Prix HT]]*1000","v":3593}]
[null,2152365,{"$f":"C5+1","v":10001},"Avivage fermoir",1.595,{"$f":"Tableau2[[#This Row],[Prix HT]]*1000","v":1595}]
[null,12540000214,{"$f":"C6+1","v":10002},"Polissage cadran",5.56,{"$f":"Tableau2[[#This Row],[Prix HT]]*1000","v":5560}]
[null,12540000214,10003,null,null,{"$f":"Tableau2[[#This Row],[Prix HT]]*1000","v":0}]
[null,12540000214,10004,null,null,{"$f":"Tableau2[[#This Row],[Prix HT]]*1000","v":0}]
[null,12540000214,10005,null,null,{"$f":"Tableau2[[#This Row],[Prix HT]]*1000","v":0}]
[null,12540000214,10006,null,null,{"$f":"Tableau2[[#This Row],[Prix HT]]*1000","v":0}]
[null,12540000214,10007,null,null,{"$f":"Tableau2[[#This Row],[Prix HT]]*1000","v":0}]
[null,12540000214,10008,null,null,{"$f":"Tableau2[[#This Row],[Prix HT]]*1000","v":0}]
[null,12540000214,10009,null,null,{"$f":"Tableau2[[#This Row],[Prix HT]]*1000","v":0}]
[null,12540000214,10010,null,null,{"$f":"Tableau2[[#This Row],[Prix HT]]*1000","v":0}]
[null,12540000214,10011,null,null,{"$f":"Tableau2[[#This Row],[Prix HT]]*1000","v":0}]
[null,12540000214,10012,null,null,{"$f":"Tableau2[[#This Row],[Prix HT]]*1000","v":0}]
[null,12540000214,10013,null,null,{"$f":"Tableau2[[#This Row],[Prix HT]]*1000","v":0}]
[null,12546,null,null,null,{"$f":"Tableau2[[#This Row],[Prix HT]]*1000","v":0}]